bitfinex/quotes_ETHUSD_20250131
["timestamp","ask_amount","ask_price","bid_price","bid_amount"]
[1738354421991,0.0075,3324.6,3324.2,3.0082]
[1738354422203,0.413789,3324.6,3323.9,3.00848]
[1738354422358,0.0075,3324.4,3323.9,3.00848]
[1738354422998,0.0075,3324.2,3323.3,3.00905]
[1738354423205,0.0075,3324.1,3323.3,0.8326]
[1738354423382,0.0075,3323.9,3323.3,3.84164]
[1738354423553,3.01603,3323.9,3323.3,3.00899]
[1738354424082,0.0075,3323.5,3322.4,3.00986]
[1738354424285,0.218,3323.4,3323.0,3.176095]
[1738354424457,0.0075,3323.3,3323.0,3.176095]
[1738354425149,0.0075,3323.3,3323.0,0.166855]
[1738354425671,0.0075,3323.3,3323.1,3.00923]
[1738354426096,0.0075,3323.3,3323.0,0.166855]
[1738354427515,0.0075,3323.3,3323.0,3.176095]
[1738354427813,0.218,3323.4,3323.0,3.176095]
[1738354427997,0.218,3323.4,3323.2,3.00912]
[1738354428165,0.218,3323.4,3323.2,3.00907]
[1738354429308,0.218,3323.4,3323.0,6.185405]
[1738354429529,0.218,3323.4,3323.1,3.00922]
[1738354429933,0.0075,3323.3,3323.0,3.176175]
[1738354430432,0.7686,3323.2,3323.0,0.166855]
[1738354431626,0.7761,3323.2,3323.1,0.03928629]
[1738354432816,4.193051,3323.2,3323.1,0.03928629]
[1738354433252,4.743051,3323.2,3323.1,0.03928629]
[1738354433437,3.00923,3323.1,3323.0,0.166855]
[1738354433911,3.02423,3323.1,3323.0,0.166855]
[1738354434113,3.02423,3323.1,3323.0,0.20620754]
[1738354434302,3.58755799,3323.1,3323.0,0.20620754]
[1738354436333,3.58755799,3323.1,3323.0,0.166855]
[1738354436739,3.58755799,3323.1,3323.0,0.20538006]
[1738354436917,3.58755799,3323.1,3323.0,0.166855]
[1738354437127,3.82985,3322.2,3322.1,0.005]
[1738354437298,4.37985,3322.2,3322.1,0.005]
[1738354437496,7.37985,3322.2,3322.1,0.005]
[1738354437941,3.82985,3322.2,3322.1,0.005]
[1738354438142,0.218,3322.2,3322.1,3.0517898]
[1738354438635,0.233,3322.2,3322.1,0.0416498]
[1738354438805,0.2255,3322.2,3322.1,0.0416498]
[1738354439008,3.23555,3322.2,3322.1,0.0416498]
[1738354439195,3.8676,3322.2,3322.1,0.0416498]
[1738354439396,4.4176,3322.2,3322.1,0.005]
[1738354439635,5.2024,3322.2,3322.1,0.005]
[1738354440507,4.6524,3322.2,3322.1,0.005]
[1738354440909,5.2024,3322.2,3322.1,0.005]
[1738354442138,0.2255,3322.2,3322.1,0.005]
[1738354442449,0.218,3322.8,3322.1,0.04180883]
[1738354442615,0.218,3322.8,3322.2,6.02003]
[1738354442793,0.015,3322.7,3322.2,3.00998]
[1738354442996,0.015,3322.7,3322.3,0.03667626]
[1738354443342,0.015,3322.7,3322.2,3.00998]
[1738354443502,0.015,3322.7,3322.3,3.04657619]
[1738354443701,0.015,3322.7,3322.3,0.03662619]
[1738354443901,0.015,3322.7,3322.2,3.00998]
[1738354444138,0.015,3322.7,3322.3,0.03662619]
[1738354444331,0.015,3322.7,3322.2,3.00998]
[1738354444647,7.39345,3322.2,3322.1,1e-05]
[1738354444800,8.1281175,3322.2,3322.1,1e-05]
[1738354446700,7.39345,3322.2,3322.1,1e-05]
[1738354449100,9.046564,3322.2,3322.1,1e-05]
[1738354449300,0.0075,3320.7,3320.1,3.0119]
[1738354449546,0.218,3320.6,3320.2,0.03444508]
[1738354449866,0.218,3320.6,3320.3,3.01169]
[1738354450217,0.218,3320.6,3320.4,0.03431236]
[1738354450759,0.218,3320.6,3320.5,0.034246]
[1738354451107,0.218,3320.6,3320.1,3.01193]
[1738354451418,0.218,3320.6,3320.3,3.01176]
[1738354451833,0.218,3320.6,3320.4,0.03431236]
[1738354452737,0.218,3320.6,3320.5,0.034246]
[1738354452941,0.218,3320.6,3320.2,3.01178]
[1738354453145,0.218,3320.6,3320.3,3.04613871]
[1738354453704,0.218,3320.6,3320.3,0.03437871]
[1738354453943,0.218,3320.6,3319.9,0.8249]
[1738354453944,0.015,3320.5,3319.9,0.8249]
[1738354454113,0.233,3320.5,3320.4,0.28004812]
[1738354454451,0.218,3320.5,3320.4,3.32604048]
[1738354454616,0.218,3320.5,3320.4,0.31436048]
[1738354454819,0.218,3320.5,3320.4,3.32604048]
[1738354455350,0.0075,3321.0,3320.4,0.31436048]
[1738354455653,3.01021,3322.1,3320.5,3.7914153]
[1738354455859,0.218,3321.8,3321.2,3.01089]
[1738354456058,0.218,3321.8,3321.2,3.01095]
[1738354456263,0.015,3321.6,3321.3,0.0341749]
[1738354456562,0.015,3321.6,3321.0,3.01106]
[1738354456762,0.218,3321.8,3321.4,0.03410859]
[1738354456965,0.218,3321.8,3321.4,3.0107]
[1738354457256,3.02553,3321.7,3321.5,0.03404227]
[1738354457463,0.015,3321.7,3321.5,0.03404227]
[1738354457618,0.0075,3321.7,3321.1,0.28004137]
[1738354457821,0.0075,3321.7,3321.6,0.03397596]
[1738354458163,0.218,3321.9,3321.6,0.03397596]
[1738354458316,0.0075,3322.3,3321.8,3.01035]
[1738354458519,0.218,3322.2,3321.9,0.03377705]
[1738354458763,0.541537,3322.2,3321.9,3.04407705]
[1738354458931,0.218,3322.2,3322.1,3.01014]
[1738354459117,0.218,3322.2,3322.1,3.04378447]
[1738354459318,3.2164,3322.9,3322.3,3.00989]
[1738354459598,0.218,3322.8,3322.4,0.03344562]
[1738354459746,2.385,3322.9,3322.4,0.03344562]
[1738354459936,0.218,3322.7,3322.6,3.00963]
[1738354460269,0.218,3322.7,3322.6,0.03331308]
[1738354460559,0.015,3322.6,3322.0,3.01014]
[1738354460893,0.218,3322.7,3322.5,3.00977]
[1738354461384,0.218,3322.7,3322.6,0.03331308]
[1738354461792,1.67615777,3323.3,3323.2,3.00914]
[1738354461992,0.218,3324.0,3323.7,3.00869]
[1738354462283,0.47125848,3323.7,3323.3,3.00905]
[1738354462437,0.218,3324.0,3323.5,3.00887]
[1738354462833,0.0075,3324.0,3323.6,3.0087]
[1738354463064,0.218,3323.9,3323.6,3.0087]
[1738354463272,0.218,3323.9,3323.7,3.00869]
[1738354463483,1.204436,3324.3,3323.5,0.777]
[1738354463854,1.204436,3324.3,3324.2,3.00824]
[1738354464464,0.7581,3325.3,3324.2,3.82542084]
[1738354464666,0.218,3325.1,3325.0,3.00751]
[1738354464896,1.203989,3325.5,3325.0,3.00751]
[1738354465099,0.218,3325.2,3325.0,3.00751]
[1738354465304,0.0075,3325.1,3324.5,3.00793]
[1738354465452,0.015,3325.1,3324.5,3.00793]
[1738354465869,0.015,3325.1,3324.2,0.7871]
[1738354465870,0.0075,3324.9,3324.2,0.7871]
[1738354466073,0.0075,3324.8,3323.9,3.0085]
[1738354466319,0.0075,3324.6,3323.9,3.00851]
[1738354466615,0.015,3324.7,3324.0,3.0084]
[1738354467004,3.02279,3324.7,3324.0,3.00839]
[1738354467201,0.0075,3324.5,3324.0,3.00839]
[1738354467387,3.02298,3324.5,3323.8,3.00858]
[1738354468811,0.015,3324.5,3323.9,3.00849]
[1738354469117,0.015,3324.5,3324.1,3.00832]
[1738354469696,0.357279,3324.6,3323.9,3.00843]
[1738354469697,0.217,3324.4,3323.9,3.00843]
[1738354470218,0.217,3324.4,3324.1,3.00825]
[1738354470429,3.7676,3324.9,3323.5,0.767]
[1738354470430,0.217,3324.5,3324.4,3.00801]
[1738354470733,0.217,3324.5,3324.2,3.00818]
[1738354470734,0.217,3325.2,3324.8,3.00768]
[1738354470916,0.217,3325.2,3324.6,3.0078]
[1738354471127,0.0075,3325.1,3324.6,3.0078]
[1738354471504,0.217,3325.2,3324.2,0.7931]
[1738354471701,0.217,3325.2,3324.7,3.00778]
[1738354471930,0.0075,3325.1,3324.8,3.00766]
[1738354472159,0.0075,3325.1,3324.5,3.00795]
[1738354472307,3.338134,3325.1,3324.5,3.00795]
[1738354472818,0.330684,3325.1,3324.5,3.00795]
[1738354473133,0.0075,3325.1,3324.7,3.00777]
[1738354473492,3.00754,3325.0,3324.4,3.00805]
[1738354473991,0.015,3324.6,3323.9,3.00848]
[1738354474188,3.02289,3324.6,3324.0,3.00839]
[1738354474392,3.325179,3324.6,3323.7,3.00861]
[1738354474634,3.01548,3324.5,3323.9,3.00844]
[1738354476234,3.84209,3324.2,3323.5,3.00881]
[1738354476617,0.8338,3324.2,3323.7,3.00868]
[1738354477019,0.8338,3324.2,3323.8,0.03894373]
[1738354477222,3.84205,3324.2,3323.8,0.03894373]
[1738354477421,3.84205,3324.2,3323.7,3.00868]
[1738354477626,4.52707,3324.2,3323.9,0.03895679]
[1738354477795,4.52707,3324.2,3323.8,0.03904107]
[1738354477996,4.52707,3324.2,3324.0,0.03887251]
[1738354478221,4.52707,3324.2,3323.9,0.03895679]
[1738354478222,1.51882,3324.2,3323.9,0.03895679]
[1738354478428,1.51132,3324.2,3323.1,0.7553]
[1738354478631,0.8195,3324.6,3324.2,3.00823]
[1738354478833,0.217,3324.5,3324.2,3.00823]
[1738354479133,0.217,3324.5,3324.4,3.00806]
[1738354479333,0.217,3324.5,3324.2,3.00823]
[1738354480319,0.217,3324.5,3324.0,3.00838]
[1738354480717,0.217,3324.5,3324.1,3.00833]
[1738354481127,0.217,3324.5,3323.7,3.00868]
[1738354481459,0.217,3324.4,3324.1,3.0083]
[1738354481620,3.00823,3324.3,3323.7,3.00869]
[1738354481943,0.7828,3324.1,3323.5,6.01767]
[1738354482143,0.7828,3324.1,3323.6,3.00878]
[1738354482144,3.7912,3324.1,3323.6,3.00878]
[1738354482553,0.7828,3324.1,3323.6,3.00878]
[1738354482754,3.79114,3324.1,3323.4,6.01784]
[1738354482966,0.386614,3324.0,3323.4,3.00889]
[1738354483134,0.386614,3324.0,3323.5,3.00886]
[1738354484047,0.0075,3324.0,3323.7,3.00864]
[1738354484258,0.0075,3324.0,3323.6,3.00877]
[1738354484259,0.217,3323.9,3323.8,3.0086]
[1738354484457,0.217,3324.1,3323.8,3.0086]
[1738354484764,0.217,3324.1,3323.2,0.7782]
[1738354484948,0.217,3324.1,3323.9,3.00847]
[1738354485146,0.8093,3324.8,3324.3,3.00813]
[1738354485335,3.2248,3324.7,3324.1,3.00827]
[1738354486343,0.015,3324.6,3323.9,3.00847]
[1738354486543,3.02293,3324.6,3323.9,3.00847]
[1738354486861,0.0075,3324.4,3323.9,3.00847]
[1738354488266,3.01557,3324.4,3323.9,3.00847]
[1738354488430,0.0075,3324.4,3323.7,3.00867]
[1738354488634,0.0075,3324.4,3323.9,3.0085]
[1738354489023,3.0082,3324.3,3323.7,3.00862]
[1738354489269,3.0082,3324.3,3323.5,3.00884]
[1738354489270,0.015,3324.2,3323.5,3.00884]
[1738354489420,3.8161,3324.1,3323.5,3.00884]
[1738354489625,3.8161,3324.1,3323.3,3.00903]
[1738354489626,3.00852,3323.9,3323.3,3.00903]
[1738354489837,3.8161,3324.1,3323.4,3.0089]
[1738354490143,3.00842,3324.0,3323.4,3.0089]
[1738354490376,4.498528,3324.1,3323.5,3.0088]
[1738354491058,4.498528,3324.1,3323.4,0.28125516]
[1738354491059,0.682428,3324.1,3323.7,3.00862]
[1738354491257,0.217,3324.2,3324.1,3.00832]
[1738354491632,0.217,3324.2,3324.1,3.04707081]
[1738354492352,0.217,3324.2,3324.1,3.32832597]
[1738354493952,3.00788,3324.6,3324.1,3.32832597]
[1738354494238,0.217,3324.3,3324.1,3.32832597]
[1738354494864,0.217,3324.3,3324.2,3.00824]
[1738354495040,0.217,3324.3,3324.1,0.32000597]
[1738354495240,0.217,3324.3,3324.2,0.03865906]
[1738354495879,0.217,3324.3,3324.2,0.31991422]
[1738354495880,3.22515,3324.3,3324.2,0.31991422]
[1738354496061,3.86347,3324.3,3324.2,0.31991422]
[1738354496641,3.86347,3324.3,3324.2,0.28125516]
[1738354496840,3.86347,3324.3,3324.2,0.3198356]
[1738354497688,3.86347,3324.3,3324.2,0.03858044]
[1738354498075,3.0233,3324.2,3323.7,0.28125516]
[1738354498744,3.00836,3324.1,3323.7,0.28125516]
[1738354499785,0.0075,3324.2,3323.7,0.28125516]
[1738354499975,0.0075,3324.2,3323.8,3.28984516]
[1738354500292,0.217,3324.3,3323.8,3.28984516]
[1738354500491,0.217,3324.3,3323.8,6.29837516]
[1738354500677,0.217,3324.3,3324.0,3.00841]
[1738354500866,0.217,3324.2,3324.0,3.00841]
[1738354501059,0.217,3324.2,3323.8,0.28125516]
[1738354501376,0.217,3324.2,3323.8,3.28979516]
[1738354501575,3.00834,3324.1,3323.8,0.28125516]
[1738354501878,3.22532,3324.2,3323.9,0.28125516]
[1738354502078,0.217,3324.2,3323.9,0.28125516]
[1738354502408,0.217,3324.2,3324.1,3.00833]
[1738354502550,0.217,3324.2,3323.9,3.28969516]
[1738354503093,0.217,3324.3,3324.2,3.00821]
[1738354503275,3.77132,3324.7,3324.0,3.00842]
[1738354503276,0.7635,3324.7,3324.0,3.00833]
[1738354503497,3.0075,3325.2,3324.0,3.00833]
[1738354503498,0.217,3324.9,3324.8,3.00763]
[1738354503683,3.00721,3325.4,3324.8,3.00763]
[1738354503883,3.80782,3325.6,3324.5,3.00796]
[1738354503884,0.0075,3325.0,3324.5,3.00796]
[1738354504050,3.00789,3324.6,3324.0,3.28962516]
[1738354504256,3.00806,3324.4,3324.0,0.28125516]
[1738354504574,3.01548,3324.5,3324.0,0.28125516]
[1738354504786,3.01548,3324.5,3324.1,0.28125516]
[1738354504987,0.8008,3324.8,3324.1,0.28125516]
[1738354505186,0.217,3324.8,3324.6,3.00782]
[1738354505357,0.217,3324.8,3324.1,3.28952516]
[1738354505358,3.2247,3324.8,3324.1,3.28952516]
[1738354505558,0.015,3324.7,3324.1,3.28952516]
[1738354505762,0.217,3324.8,3324.2,3.00819]
[1738354506070,0.217,3324.8,3324.6,3.00782]
[1738354506386,0.217,3324.8,3324.7,3.00779]
[1738354506552,0.217,3324.8,3324.7,3.04843393]
[1738354506995,0.217,3324.8,3324.7,0.04064393]
[1738354507199,0.217,3324.8,3324.5,3.00796]
[1738354507400,0.217,3324.8,3324.6,0.04073659]
[1738354507805,0.0075,3324.7,3324.6,0.04073659]
[1738354508099,3.83079,3324.7,3324.6,0.04073659]
[1738354508308,0.217,3324.8,3324.3,3.00808]
[1738354508608,0.217,3324.8,3324.6,0.28125516]
[1738354509095,0.217,3324.8,3324.7,0.04064393]
[1738354509096,0.232,3324.8,3324.7,0.04064393]
[1738354509399,4.113655,3324.8,3324.7,0.04064393]
[1738354509563,3.57279,3324.7,3324.6,0.28125516]
[1738354509758,4.34049,3324.7,3324.6,0.32183529]
[1738354509961,4.34049,3324.7,3324.6,0.28125516]
[1738354510173,0.015,3324.3,3323.7,3.00868]
[1738354510409,0.015,3324.3,3323.1,9.65091332]
[1738354510410,0.0075,3324.1,3323.3,3.00901]
[1738354510560,0.0075,3323.9,3323.1,3.76035]
[1738354510765,3.01603,3323.9,3323.3,3.00898]
[1738354511013,3.01603,3323.9,3323.4,0.04926789]
[1738354511211,0.015,3324.0,3323.4,3.05821789]
[1738354511499,0.7677,3324.2,3323.4,0.04926789]
[1738354511657,0.217,3324.3,3324.1,3.00829]
[1738354511862,0.217,3324.3,3324.2,3.00824]
[1738354512289,0.7677,3324.9,3324.6,3.00782]
[1738354512492,0.217,3324.8,3324.6,3.00782]
[1738354513427,0.015,3325.2,3324.6,3.00782]
[1738354513627,0.217,3325.1,3324.8,3.00761]
[1738354513918,0.217,3325.1,3324.6,0.7512]
[1738354514125,0.217,3325.1,3324.8,3.00763]
[1738354514327,0.217,3325.1,3324.7,3.00776]
[1738354514890,0.217,3325.1,3324.8,3.00766]
[1738354515107,0.217,3325.1,3324.9,3.00759]
[1738354515495,0.0075,3325.6,3324.3,0.7512]
[1738354515496,0.217,3325.3,3324.3,3.75928]
[1738354515693,0.217,3325.3,3324.4,0.375928]
[1738354515926,0.217,3325.3,3324.8,3.00764]
[1738354516422,3.22427,3325.3,3324.8,3.00764]
[1738354516628,0.217,3325.3,3324.8,3.00764]
[1738354517225,0.217,3325.3,3324.6,3.00786]
[1738354517226,0.015,3325.2,3324.6,3.00786]
[1738354517426,3.00772,3324.8,3324.2,3.0082]
[1738354517631,0.0075,3324.6,3324.0,3.00842]
[1738354517781,3.00828,3324.2,3323.6,3.0087]
[1738354518125,0.0075,3324.2,3323.7,3.00867]
[1738354518708,0.015,3324.4,3323.7,3.00865]
[1738354518908,0.015,3324.4,3323.8,0.28130264]
[1738354518909,3.01581,3324.2,3323.8,0.28130264]
[1738354519127,3.01601,3323.9,3323.8,0.28130264]
[1738354519308,3.23301,3323.9,3323.8,0.28130264]
[1738354519622,0.2245,3323.9,3323.8,0.28130264]
[1738354520424,0.217,3323.9,3323.7,3.00869]
[1738354520726,0.217,3323.9,3323.8,3.0086]
[1738354520927,0.217,3323.9,3323.8,3.841]
[1738354521432,0.217,3324.5,3324.3,3.00809]
[1738354521584,0.217,3324.5,3324.1,3.00829]
[1738354522124,0.0075,3324.4,3323.9,3.00848]
[1738354522500,0.0075,3324.4,3324.0,3.00835]
[1738354522728,0.0075,3324.4,3323.9,3.00848]
[1738354523230,0.0075,3324.4,3323.9,3.00844]
[1738354523573,0.0075,3324.4,3323.8,0.28130264]
[1738354523574,3.02351,3323.9,3323.8,0.28130264]
[1738354524039,7.38421,3323.9,3323.8,0.28130264]
[1738354524385,7.38421,3323.9,3323.8,2.64e-06]
[1738354524588,3.0096,3322.7,3322.1,3.01012]
[1738354524788,3.2267,3322.6,3322.2,0.05108139]
[1738354525135,0.217,3322.6,3322.1,3.01012]
[1738354525288,0.217,3322.6,3322.4,3.00979]
[1738354525485,0.217,3322.6,3322.2,3.06114713]
[1738354525685,0.217,3322.6,3322.2,3.01004]
[1738354526131,0.217,3322.6,3322.3,0.04573281]
[1738354526429,3.00987,3322.4,3321.7,3.01044]
[1738354526592,0.0075,3322.5,3322.4,0.04563886]
[1738354526593,0.015,3322.5,3322.4,0.04563886]
[1738354526792,0.015,3322.5,3322.0,3.01015]
[1738354526993,0.015,3322.5,3322.1,0.04604891]
[1738354527214,3.02479,3322.5,3322.1,0.04604891]
[1738354527424,4.34885,3322.2,3322.1,0.04604891]
[1738354527688,4.34885,3322.2,3320.9,0.7758]
[1738354527689,0.0075,3321.8,3321.2,3.0109]
[1738354527887,0.0075,3322.3,3320.9,0.7758]
[1738354527888,0.322669,3322.5,3321.3,0.04712133]
[1738354528091,0.015,3322.4,3321.6,3.01051]
[1738354528431,3.02496,3322.4,3321.7,3.01044]
[1738354528633,0.015,3322.4,3321.9,3.0103]
[1738354528931,0.015,3322.4,3322.0,0.04176352]
[1738354529135,3.4607999,3322.4,3322.0,0.04176352]
[1738354529433,0.0075,3321.7,3321.0,3.01111]
[1738354529632,3.55,3322.2,3321.3,3.01078]
[1738354529937,0.4359099,3322.4,3321.5,3.0106]
[1738354530142,0.0075,3321.5,3320.8,3.01125]
[1738354530296,3.0,3322.0,3320.9,0.87522323]
[1738354530500,3.0,3322.0,3321.5,3.01068]
[1738354531008,0.0075,3321.9,3321.5,3.01067]
[1738354531228,0.015,3321.9,3321.2,3.01087]
[1738354531549,3.02538,3321.9,3321.2,3.01087]
[1738354531745,3.02538,3321.9,3321.0,3.01114]
[1738354531967,3.02538,3321.9,3321.3,3.01086]
[1738354532124,0.45949409,3321.9,3321.3,3.01086]
[1738354532325,3.46983409,3321.9,3321.3,3.01086]
[1738354532654,3.01081,3321.4,3320.8,3.01128]
[1738354532857,0.217,3321.3,3321.0,3.01112]
[1738354533736,0.217,3321.3,3321.1,3.01096]
[1738354534054,0.217,3321.3,3321.2,3.01095]
[1738354534456,0.217,3321.3,3321.0,3.01113]
[1738354534755,0.217,3321.3,3320.4,0.7599]
[1738354534984,0.217,3321.3,3320.9,3.01115]
[1738354535188,0.217,3321.3,3321.0,3.01113]
[1738354535961,0.0075,3321.7,3320.5,0.0301111]
[1738354536161,0.0075,3321.7,3321.2,3.01089]
[1738354536162,0.217,3321.6,3321.2,3.01089]
[1738354536387,0.217,3321.6,3320.9,3.01117]
[1738354536593,0.217,3321.6,3321.1,3.01096]
[1738354536884,0.217,3321.6,3321.3,3.01081]
[1738354537389,0.217,3321.6,3321.1,3.01096]
[1738354537680,0.015,3321.5,3320.5,6.02318]
[1738354537882,0.015,3321.5,3320.4,3.77157]
[1738354538091,0.015,3321.5,3320.6,0.05681796]
[1738354538275,0.015,3321.5,3321.0,3.01105]
[1738354538658,0.217,3321.6,3321.3,3.01079]
[1738354538961,0.0075,3321.7,3321.3,3.01079]
[1738354539173,0.0075,3321.5,3320.9,3.01114]
[1738354539484,3.01821,3321.5,3320.9,3.06755991]
[1738354539873,3.01083,3321.4,3320.9,0.05641991]
[1738354540069,3.02571,3321.5,3320.9,3.06762991]
[1738354540476,0.8243,3321.8,3321.5,3.01062]
[1738354540792,0.217,3322.5,3322.2,3.01001]
[1738354541001,0.7507,3323.1,3322.1,0.7567]
[1738354541140,0.217,3323.2,3322.9,3.00933]
[1738354541340,0.217,3323.2,3322.1,0.7567]
[1738354541341,3.00923,3323.1,3322.1,0.7567]
[1738354541606,4.30041332,3323.1,3321.8,0.7567]
[1738354541746,0.55,3322.3,3322.0,3.01022]
[1738354541945,0.8188,3322.9,3322.4,3.00978]
[1738354542255,0.5575,3322.6,3322.0,3.0102]
[1738354542467,0.0075,3322.4,3321.8,3.01039]
[1738354542664,0.565,3322.1,3321.5,3.01059]
[1738354542868,0.5575,3321.8,3321.3,3.01084]
[1738354543064,0.55,3321.9,3321.4,3.01069]
[1738354543861,0.439369,3322.1,3321.7,3.01044]
[1738354544168,3.82857,3322.3,3321.5,3.01061]
[1738354544169,3.56757,3322.2,3321.5,3.01061]
[1738354544372,3.56757,3322.2,3321.4,3.01073]
[1738354544373,0.5575,3322.2,3321.6,3.01053]
[1738354544555,0.0075,3322.1,3321.4,3.0107]
[1738354544755,0.565,3321.9,3321.4,3.0107]
[1738354545003,3.8286,3322.3,3321.6,3.01054]
[1738354545168,0.217,3322.2,3321.8,3.01041]
[1738354545370,3.02521,3322.1,3321.5,3.01066]
[1738354545588,0.7727,3321.6,3321.1,3.01097]
[1738354545789,0.7727,3321.6,3320.6,0.7512]
[1738354545790,0.55,3321.3,3320.6,0.7512]
[1738354546000,0.565,3321.2,3320.2,0.7956]
[1738354546311,0.357595,3321.2,3320.2,0.7956]
[1738354546478,0.7727,3321.6,3320.9,3.01116]
[1738354546798,0.7727,3321.6,3321.1,3.01103]
[1738354547368,0.5575,3321.5,3321.0,3.01112]
[1738354547567,0.5575,3321.3,3320.7,3.01133]
[1738354547763,0.5575,3321.3,3320.2,3.80746]
[1738354547764,0.0075,3321.2,3320.8,3.0113]
[1738354548017,0.0075,3321.2,3320.9,3.01121]
[1738354548181,0.0075,3321.2,3320.7,3.01136]
[1738354548382,3.56105,3321.1,3320.5,3.01157]
[1738354548600,0.55,3321.1,3320.6,3.01148]
[1738354548797,0.55,3321.1,3319.9,3.0]
[1738354548798,0.55,3320.6,3320.1,3.01189]
[1738354549120,0.5575,3320.4,3319.9,3.01209]
[1738354549612,0.5575,3320.4,3319.7,3.179135]
[1738354549613,0.0075,3320.3,3319.7,0.166855]
[1738354549820,1.3302,3320.1,3319.7,0.166855]
[1738354550181,0.55,3319.9,3319.7,0.166855]
[1738354550377,0.0075,3319.8,3319.7,0.166855]
[1738354551724,0.0075,3319.8,3319.7,0.20463347]
[1738354552426,4.39772,3319.8,3319.7,0.20463347]
[1738354552581,4.39772,3319.8,3319.7,0.166855]
[1738354554127,4.39772,3319.8,3319.7,0.20491775]
[1738354554426,5.11081399,3319.8,3319.7,0.166855]
[1738354555532,8.11081399,3319.8,3319.7,5e-06]
[1738354555698,0.802,3318.5,3317.7,3.01411]
[1738354555882,0.55,3318.3,3317.1,0.787]
[1738354556237,0.217,3318.4,3317.7,3.01409]
[1738354556532,0.217,3318.4,3317.3,3.01447]
[1738354556533,0.217,3318.4,3317.4,3.0144]
[1738354556826,0.5575,3318.3,3317.8,3.014]
[1738354557325,0.5575,3318.3,3317.9,0.04185826]
[1738354557901,0.5575,3318.3,3317.9,3.05578826]
[1738354558442,0.5575,3318.3,3317.9,0.04185826]
[1738354558646,0.5575,3318.3,3317.9,3.05578826]
[1738354558938,0.5575,3318.3,3317.9,3.05574826]
[1738354559970,0.0075,3318.2,3317.9,0.04185826]
[1738354560300,0.55,3318.3,3318.0,3.0138]
[1738354560501,0.55,3318.3,3318.1,3.01368]
[1738354561043,0.565,3318.3,3318.2,0.03624423]
[1738354561290,0.70765,3318.3,3317.2,0.03014034]
[1738354561496,0.7945,3318.5,3318.2,0.03624079]
[1738354561640,0.7945,3318.5,3317.2,0.03014034]
[1738354561641,0.8273,3318.9,3318.4,3.01343]
[1738354561992,0.217,3318.8,3318.5,0.03600139]
[1738354562158,0.217,3318.8,3318.2,3.01367]
[1738354562159,0.5575,3318.7,3318.2,3.01367]
[1738354562492,0.5575,3318.7,3318.6,0.03592389]
[1738354562655,1.018984,3318.7,3318.2,3.01361]
[1738354562990,0.55,3318.7,3318.3,0.03615641]
[1738354563190,0.55,3318.7,3318.5,3.01338]
[1738354563594,0.217,3318.8,3318.6,0.03316052]
[1738354563799,0.217,3318.8,3317.7,6.01405]
[1738354563800,3.0135,3318.4,3317.7,3.01406]
[1738354563949,0.5575,3318.1,3317.7,3.01406]
[1738354564245,0.5575,3318.1,3317.2,3.8234]
[1738354564448,0.5575,3318.1,3317.6,3.01416]
[1738354565590,0.217,3318.3,3317.9,3.01389]
[1738354565892,0.0075,3318.2,3317.7,3.0141]
[1738354566402,0.55,3317.9,3317.5,3.01428]
[1738354566563,0.55,3317.9,3317.8,0.03377415]
[1738354566760,0.55,3317.9,3317.1,0.005]
[1738354566761,0.015,3317.8,3317.1,3.01967]
[1738354566960,0.565,3317.6,3317.1,3.01967]
[1738354567178,0.015,3317.6,3317.1,0.005]
[1738354567693,0.015,3317.6,3317.1,3.01967]
[1738354567694,0.0075,3317.4,3317.1,3.01967]
[1738354567849,0.0075,3317.4,3317.1,0.005]
[1738354568193,0.0075,3317.5,3317.1,3.01967]
[1738354568690,0.217,3317.4,3317.3,3.01444]
[1738354568922,0.217,3317.4,3317.3,3.01445]
[1738354569195,0.7913,3318.0,3317.6,3.0142]
[1738354569343,0.7913,3318.0,3317.1,3.01959]
[1738354569344,0.217,3317.5,3317.4,3.7654]
[1738354569548,0.217,3317.5,3317.4,4.443389]
[1738354569792,0.217,3317.5,3317.4,3.0144]
[1738354569960,0.217,3317.5,3317.1,3.01967]
[1738354569961,0.767,3317.5,3317.1,3.01967]
[1738354570367,0.767,3317.5,3317.2,3.01456]
[1738354570696,0.55,3317.4,3317.1,0.005]
[1738354570995,0.55,3317.4,3317.1,3.01967]
[1738354571496,0.015,3317.3,3317.1,0.005]
[1738354572179,1.008316,3317.4,3317.1,3.01966]
[1738354572368,0.55,3317.4,3317.1,3.01966]
[1738354572553,0.55,3317.4,3317.1,0.005]
[1738354572750,0.015,3317.3,3317.1,0.005]
[1738354573273,0.0075,3317.3,3317.1,0.005]
[1738354573497,0.565,3317.4,3317.1,0.005]
[1738354573650,7.35960332,3317.2,3317.1,0.005]
[1738354573849,7.90960332,3317.2,3317.1,0.005]
[1738354575396,4.89501332,3317.2,3317.1,0.005]
[1738354575566,4.88751332,3317.2,3317.1,0.005]
[1738354575772,5.69356165,3317.2,3317.1,0.05138224]
[1738354576101,0.217,3317.2,3317.1,0.05138224]
[1738354576438,3.24659,3317.2,3317.1,0.05138224]
[1738354576735,11.14410332,3317.2,3317.1,0.005]
[1738354577336,7.36211,3316.4,3316.3,0.166855]